[Event "North American U20 Girls 2019"]
[Site "Charlotte"]
[Date "2019.06.27"]
[Round "1.1"]
[White "Yip, Carissa"]
[Black "Arnold, Peishanika"]
[Result "1-0"]
[ECO "B90"]
[WhiteElo "2276"]
[BlackElo "1763"]
[Annotator "NA"]
[PlyCount "91"]
[EventDate "2019.06.27"]
[EventType "swiss"]
[EventCountry "USA"]
[SourceTitle "playchess.com"]
[Source "ChessBase"]
[SourceQuality "1"]
[TimeControl "5400+30"]

1. e4 {[%emt 1:30:30]} c5 {[%emt 1:30:30]} 2. Nf3 {[%emt 0:00:30]} d6 {[%emt 0:00:30]} 3. d4 {[%emt 0:00:30]} cxd4 {[%emt 0:00:30]} 4. Nxd4 {[%emt 0:00:30]} Nf6 {[%emt 0:00:30]} 5. Nc3 {[%emt 0:00:30]} a6 {[%emt 0:00:30]} 6. Be3 {[%emt 0:00:30]} Nbd7 {[%emt 0:00:30]} 7. f3 {[%emt 0:00:30]} b5 {[%emt 0:00:30]} 8. g4 {[%emt 0:00:30]} e5 {[%emt 0:00:30]} 9. Nc6 Qc7 {[%emt 0:00:30]} 10. Nb4 {[%emt 0:01:00]} Nb6 {[%emt 0:00:30]} 11. g5 {[%emt 0:00:30]} Nfd7 {[%emt 0:00:30]} 12. Nbd5 {[%emt 0:00:30]} Qd8 {[%emt 0:00:30]} 13. a4 {[%emt 0:00:30]} bxa4 {[%emt 0:00:30]} 14. Nxa4 {[%emt 0:00:30]} Nxa4 {[%emt 0:00:30]} 15. Rxa4 {[%emt 0:00:30]} Bb7 {[%emt 0:00:30]} 16. Bh3 {[%emt 0:00:30]} Bxd5 {[%emt 0:00:30]} 17. Qxd5 {[%emt 0:00:30]} Rc8 {[%emt 0:00:30]} 18. Rxa6 {[%emt 0:00:30]} Rxc2 {[%emt 0:00:30]} 19. Ra8 {[%emt 0:00:30]} Rc8 {[%emt 0:00:30]} 20. Rxc8 {[%emt 0:00:30]} Qxc8 {[%emt 0:00:30]} 21. O-O {[%emt 0:00:30]} Be7 {[%emt 0:00:30]} 22. Rc1 {[%emt 0:00:30]} Qd8 {[%emt 0:00:30]} 23. Qc6 {[%emt 0:00:30]} O-O {[%emt 0:00:30]} 24. Qxd7 {[%emt 0:00:30]} Bxg5 {[%emt 0:00:30]} 25. Qa7 {[%emt 0:00:30]} Qf6 {[%emt 0:00:30]} 26. Bg2 {[%emt 0:00:30]} h5 {[%emt 0:00:30]} 27. b4 {[%emt 0:00:30]} h4 {[%emt 0:00:30]} 28. h3 {[%emt 0:00:30]} Qg6 {[%emt 0:00:30]} 29. Rc3 {[%emt 0:00:30]} f5 {[%emt 0:00:30]} 30. Bxg5 {[%emt 0:00:30]} Qxg5 {[%emt 0:00:30]} 31. Qe3 {[%emt 0:00:30]} Qg6 {[%emt 0:00:30]} 32. b5 {[%emt 0:00:30]} f4 {[%emt 0:00:30]} 33. Qd2 {[%emt 0:00:30]} Rd8 {[%emt 0:00:30]} 34. Qd5+ {[%emt 0:00:30]} Kh7 {[%emt 0:00:30]} 35. b6 {[%emt 0:00:30]} Qe8 {[%emt 0:00:30]} 36. Qc6 {[%emt 0:00:30]} Qe7 {[%emt 0:00:30]} 37. b7 {[%emt 0:00:30]} Rb8 {[%emt 0:00:30]} 38. Rb3 {[%emt 0:00:30]} Qd8 {[%emt 0:00:30]} 39. Rb6 {[%emt 0:00:30]} Kh8 {[%emt 0:00:30]} 40. Ra6 {[%emt 0:00:30]} Kh7 {[%emt 0:00:30]} 41. Ra8 {[%emt 0:00:30]} Kh6 {[%emt 0:00:30]} 42. Kh1 {[%emt 0:00:30]} Kh7 {[%emt 0:00:30]} 43. Rxb8 {[%emt 0:00:30]} Qxb8 {[%emt 0:00:30]} 44. Qc8 {[%emt 0:00:30]} Qa7 {[%emt 0:00:30]} 45. b8=Q {[%emt 0:00:30]} Qf2 {[%emt 0:00:30]} 46. Qf5+ {[%emt 0:00:30]} 1-0

[Event "North American U20 Girls 2019"]
[Site "Charlotte"]
[Date "2019.06.27"]
[Round "1.2"]
[White "Velidandla, Sarvagna"]
[Black "Zhu, Evelyn"]
[Result "0-1"]
[ECO "D13"]
[WhiteElo "1717"]
[BlackElo "2006"]
[Annotator "NA"]
[PlyCount "111"]
[EventDate "2019.06.27"]
[EventType "swiss"]
[EventCountry "USA"]
[SourceTitle "playchess.com"]
[Source "ChessBase"]
[SourceQuality "1"]
[TimeControl "5400+30"]

1. d4 {[%emt 1:30:30]} d5 {[%emt 1:30:30]} 2. c4 {[%emt 0:00:30]} c6 {[%emt 0:00:30]} 3. cxd5 {[%emt 0:00:30]} cxd5 {[%emt 0:00:30]} 4. Nc3 {[%emt 0:00:30]} Nf6 {[%emt 0:00:30]} 5. Bf4 {[%emt 0:00:30]} Nc6 {[%emt 0:00:30]} 6. e3 {[%emt 0:00:30]} a6 {[%emt 0:00:30]} 7. Rc1 {[%emt 0:00:30]} Bf5 {[%emt 0:00:30]} 8. Nf3 {[%emt 0:00:30]} e6 {[%emt 0:00:30]} 9. Qb3 {[%emt 0:00:30]} Ra7 {[%emt 0:00:30]} 10. Be2 {[%emt 0:00:30]} Be7 {[%emt 0:00:30]} 11. h3 {[%emt 0:00:30]} Nd7 {[%emt 0:00:30]} 12. O-O {[%emt 0:00:30]} O-O {[%emt 0:00:30]} 13. Na4 {[%emt 0:00:30]} Re8 {[%emt 0:00:30]} 14. Bd3 {[%emt 0:00:30]} Bxd3 {[%emt 0:00:30]} 15. Qxd3 {[%emt 0:00:30]} Qa5 {[%emt 0:00:30]} 16. Qb3 {[%emt 0:00:30]} Rc8 {[%emt 0:00:30]} 17. Ne5 {[%emt 0:00:30]} Ndxe5 {[%emt 0:00:30]} 18. Bxe5 {[%emt 0:00:30]} b5 {[%emt 0:00:30]} 19. Nc5 {[%emt 0:00:30]} Qb6 {[%emt 0:00:30]} 20. Bf4 {[%emt 0:00:30]} Raa8 {[%emt 0:00:30]} 21. Qd3 {[%emt 0:00:30]} Qa7 {[%emt 0:00:30]} 22. Rc3 {[%emt 0:00:30]} e5 {[%emt 0:00:30]} 23. Bg3 {[%emt 0:00:30]} exd4 {[%emt 0:00:30]} 24. exd4 {[%emt 0:00:30]} Bf6 {[%emt 0:00:30]} 25. Nb3 {[%emt 0:00:30]} Nxd4 {[%emt 0:00:30]} 26. Rxc8+ {[%emt 0:00:30]} Rxc8 {[%emt 0:00:30]} 27. Nxd4 {[%emt 0:00:30]} Qxd4 {[%emt 0:00:30]} 28. Qf5 {[%emt 0:00:30]} Qc4 {[%emt 0:00:30]} 29. Rd1 {[%emt 0:00:30]} d4 {[%emt 0:00:30]} 30. Be5 {[%emt 0:00:30]} Bxe5 {[%emt 0:00:30]} 31. Qxe5 {[%emt 0:00:30]} d3 {[%emt 0:00:30]} 32. Qd6 {[%emt 0:00:30]} Qxa2 {[%emt 0:00:30]} 33. Rxd3 {[%emt 0:00:30]} h6 {[%emt 0:00:30]} 34. Qd7 {[%emt 0:00:30]} Rc1+ {[%emt 0:00:30]} 35. Kh2 {[%emt 0:00:30]} Qc4 {[%emt 0:00:30]} 36. Rd4 {[%emt 0:00:30]} Qc7+ {[%emt 0:00:30]} 37. Qxc7 {[%emt 0:00:30]} Rxc7 {[%emt 0:00:30]} 38. Rd8+ {[%emt 0:00:30]} Kh7 {[%emt 0:00:30]} 39. Rd6 {[%emt 0:00:30]} Rc2 {[%emt 0:00:30]} 40. Kg3 {[%emt 0:00:30]} a5 {[%emt 0:00:30]} 41. b4 {[%emt 0:00:30]} axb4 {[%emt 0:00:30]} 42. Rd5 {[%emt 0:00:30]} b3 {[%emt 0:00:30]} 43. Rxb5 {[%emt 0:00:30]} b2 {[%emt 0:00:30]} 44. Kf3 {[%emt 0:00:30]} Kg6 {[%emt 0:00:30]} 45. g3 {[%emt 0:00:30]} Kf6 {[%emt 0:00:30]} 46. h4 {[%emt 0:00:30]} Ke6 {[%emt 0:00:30]} 47. Ke3 {[%emt 0:00:30]} Kd6 {[%emt 0:00:30]} 48. Rb8 {[%emt 0:00:30]} Kd5 {[%emt 0:00:30]} 49. Rb5+ {[%emt 0:00:30]} Kc4 {[%emt 0:00:30]} 50. Rb8 {[%emt 0:00:30]} Kc3 {[%emt 0:00:30]} 51. f3 {[%emt 0:00:30]} Rg2 {[%emt 0:00:30]} 52. g4 {[%emt 0:00:30]} Kc2 {[%emt 0:00:30]} 53. Rc8+ {[%emt 0:00:30]} Kd1 {[%emt 0:00:30]} 54. Rb8 {[%emt 0:00:30]} Kc1 {[%emt 0:00:30]} 55. Rc8+ {[%emt 0:00:30]} Rc2 {[%emt 0:00:30]} 56. Kd4 {[%emt 0:00:30]} 0-1

[Event "North American U20 Girls 2019"]
[Site "Charlotte"]
[Date "2019.06.27"]
[Round "1.3"]
[White "Zeng, Sheena"]
[Black "Yellamraju, Ambica"]
[Result "1-0"]
[ECO "D35"]
[WhiteElo "1964"]
[BlackElo "1712"]
[Annotator "NA"]
[PlyCount "87"]
[EventDate "2019.06.27"]
[EventType "swiss"]
[EventCountry "USA"]
[SourceTitle "playchess.com"]
[Source "ChessBase"]
[SourceQuality "1"]
[TimeControl "5400+30"]

1. d4 {[%emt 1:30:30]} d5 {[%emt 1:30:30]} 2. c4 {[%emt 0:00:30]} e6 {[%emt 0:00:30]} 3. Nc3 {[%emt 0:00:30]} Be7 {[%emt 0:00:30]} 4. Nf3 {[%emt 0:00:30]} Nf6 {[%emt 0:00:30]} 5. cxd5 {[%emt 0:00:30]} exd5 {[%emt 0:00:30]} 6. Qc2 {[%emt 0:00:30]} c6 {[%emt 0:00:30]} 7. h3 {[%emt 0:00:30]} O-O {[%emt 0:00:30]} 8. Bf4 {[%emt 0:00:30]} Nbd7 {[%emt 0:00:30]} 9. e3 {[%emt 0:00:30]} Re8 {[%emt 0:00:30]} 10. Bd3 {[%emt 0:00:30]} Nf8 {[%emt 0:00:30]} 11. O-O {[%emt 0:00:30]} Ng6 {[%emt 0:00:30]} 12. Bh2 {[%emt 0:00:30]} Bd6 {[%emt 0:00:30]} 13. Bxd6 {[%emt 0:00:30]} Qxd6 {[%emt 0:00:30]} 14. Rab1 {[%emt 0:00:30]} Bd7 {[%emt 0:00:30]} 15. b4 {[%emt 0:00:30]} a6 {[%emt 0:00:30]} 16. Na4 {[%emt 0:00:30]} Ne4 {[%emt 0:00:30]} 17. Nc5 {[%emt 0:00:30]} Nxc5 {[%emt 0:00:30]} 18. bxc5 {[%emt 0:00:30]} Qc7 {[%emt 0:00:30]} 19. Rb6 {[%emt 0:00:30]} Nf8 {[%emt 0:00:30]} 20. Rfb1 {[%emt 0:00:30]} Bc8 {[%emt 0:00:30]} 21. Ne5 {[%emt 0:00:30]} g6 {[%emt 0:00:30]} 22. R6b3 {[%emt 0:00:30]} Ne6 {[%emt 0:00:30]} 23. f4 {[%emt 0:00:30]} Ng7 {[%emt 0:00:30]} 24. Qf2 {[%emt 0:00:30]} Ra7 {[%emt 0:00:30]} 25. Bc2 {[%emt 0:00:30]} Bf5 {[%emt 0:00:30]} 26. Bxf5 {[%emt 0:00:30]} Nxf5 {[%emt 0:00:30]} 27. g4 {[%emt 0:00:30]} Ng7 {[%emt 0:00:30]} 28. g5 {[%emt 0:00:30]} Nf5 {[%emt 0:00:30]} 29. h4 {[%emt 0:00:30]} Kf8 {[%emt 0:00:30]} 30. Qh2 {[%emt 0:00:30]} Ng7 {[%emt 0:00:30]} 31. f5 {[%emt 0:00:30]} Kg8 {[%emt 0:00:30]} 32. f6 {[%emt 0:00:30]} Ne6 {[%emt 0:00:30]} 33. Ng4 {[%emt 0:00:30]} Qxh2+ {[%emt 0:00:30]} 34. Kxh2 {[%emt 0:00:30]} Nd8 {[%emt 0:00:30]} 35. Ne5 {[%emt 0:00:30]} Ra8 {[%emt 0:00:30]} 36. Kg3 {[%emt 0:00:30]} Rc8 {[%emt 0:00:30]} 37. R3b2 {[%emt 0:00:30]} Rc7 {[%emt 0:00:30]} 38. h5 {[%emt 0:00:30]} Ne6 {[%emt 0:00:30]} 39. hxg6 {[%emt 0:00:30]} hxg6 {[%emt 0:00:30]} 40. Kg4 {[%emt 0:00:30]} Ng7 {[%emt 0:00:30]} 41. fxg7 {[%emt 0:00:30]} Kxg7 {[%emt 0:00:30]} 42. Rxb7 {[%emt 0:00:30]} Ree7 {[%emt 0:00:30]} 43. Rxc7 {[%emt 0:00:30]} Rxc7 {[%emt 0:00:30]} 44. Rb6 {[%emt 0:00:30]} 1-0

[Event "North American U20 Girls 2019"]
[Site "Charlotte"]
[Date "2019.06.27"]
[Round "1.4"]
[White "Santiago Gonzalez, Frida"]
[Black "Morris-Suzuki, Sophie"]
[Result "0-1"]
[ECO "A08"]
[WhiteElo "1711"]
[BlackElo "1945"]
[Annotator "NA"]
[PlyCount "62"]
[EventDate "2019.06.27"]
[EventType "swiss"]
[EventCountry "USA"]
[SourceTitle "playchess.com"]
[Source "ChessBase"]
[SourceQuality "1"]
[TimeControl "5400+30"]

1. e4 {[%emt 1:30:30]} c5 {[%emt 1:30:30]} 2. Nf3 {[%emt 0:00:30]} e6 {[%emt 0:00:30]} 3. d3 {[%emt 0:00:30]} d5 {[%emt 0:00:30]} 4. Nbd2 {[%emt 0:00:30]} Nc6 {[%emt 0:00:30]} 5. g3 {[%emt 0:00:30]} Bd6 {[%emt 0:00:30]} 6. Bg2 {[%emt 0:00:30]} Nge7 {[%emt 0:00:30]} 7. O-O {[%emt 0:00:30]} O-O {[%emt 0:00:30]} 8. Re1 {[%emt 0:00:30]} b5 {[%emt 0:00:30]} 9. a4 {[%emt 0:00:30]} b4 {[%emt 0:00:30]} 10. b3 {[%emt 0:00:30]} a5 {[%emt 0:00:30]} 11. Bb2 {[%emt 0:00:30]} Ba6 {[%emt 0:00:30]} 12. exd5 {[%emt 0:00:30]} exd5 {[%emt 0:00:30]} 13. Nh4 {[%emt 0:00:30]} Qd7 {[%emt 0:00:30]} 14. Qh5 {[%emt 0:00:30]} Bc7 {[%emt 0:00:30]} 15. Ndf3 {[%emt 0:00:30]} f6 {[%emt 0:00:30]} 16. Nd2 {[%emt 0:00:30]} Rad8 {[%emt 0:00:30]} 17. Rad1 {[%emt 0:00:30]} Bc8 {[%emt 0:00:30]} 18. f4 {[%emt 0:00:30]} Qd6 {[%emt 0:00:30]} 19. f5 {[%emt 0:00:30]} Ne5 {[%emt 0:00:30]} 20. Ndf3 {[%emt 0:00:30]} Nf7 {[%emt 0:00:30]} 21. Bc1 {[%emt 0:00:30]} Nc6 {[%emt 0:00:30]} 22. Bf4 {[%emt 0:00:30]} Qd7 {[%emt 0:00:30]} 23. Bxc7 {[%emt 0:00:30]} Qxc7 {[%emt 0:00:30]} 24. Re2 {[%emt 0:00:30]} c4 {[%emt 0:00:30]} 25. dxc4 {[%emt 0:00:30]} dxc4 {[%emt 0:00:30]} 26. Rde1 {[%emt 0:00:30]} Bd7 {[%emt 0:00:30]} 27. Nd2 {[%emt 0:00:30]} Nd4 {[%emt 0:00:30]} 28. Re7 {[%emt 0:00:30]} Nxc2 {[%emt 0:00:30]} 29. Kh1 {[%emt 0:00:30]} Qc5 {[%emt 0:00:30]} 30. R1e2 {[%emt 0:00:30]} Nd4 {[%emt 0:00:30]} 31. R2e4 {[%emt 0:00:30]} c3 {[%emt 0:00:30]} 0-1

[Event "North American U20 Girls 2019"]
[Site "Charlotte"]
[Date "2019.06.27"]
[Round "1.5"]
[White "Chin, Angelica"]
[Black "Dommalapati, Aasa"]
[Result "0-1"]
[ECO "B33"]
[WhiteElo "1937"]
[BlackElo "1691"]
[Annotator "NA"]
[PlyCount "120"]
[EventDate "2019.06.27"]
[EventType "swiss"]
[EventCountry "USA"]
[SourceTitle "playchess.com"]
[Source "ChessBase"]
[SourceQuality "1"]
[TimeControl "5400+30"]

1. e4 {[%emt 1:30:30]} c5 {[%emt 1:30:30]} 2. Nf3 {[%emt 0:00:30]} Nc6 {[%emt 0:00:30]} 3. d4 {[%emt 0:00:30]} cxd4 {[%emt 0:00:30]} 4. Nxd4 {[%emt 0:00:30]} Nf6 {[%emt 0:00:30]} 5. Nc3 {[%emt 0:00:30]} e5 {[%emt 0:00:30]} 6. Ndb5 {[%emt 0:00:30]} d6 {[%emt 0:00:30]} 7. Bg5 {[%emt 0:00:30]} a6 {[%emt 0:00:30]} 8. Na3 {[%emt 0:00:30]} b5 {[%emt 0:00:30]} 9. Nd5 {[%emt 0:00:30]} Be7 {[%emt 0:00:30]} 10. Bxf6 {[%emt 0:00:30]} Bxf6 {[%emt 0:00:30]} 11. c4 {[%emt 0:00:30]} b4 {[%emt 0:00:30]} 12. Nc2 {[%emt 0:00:30]} a5 {[%emt 0:00:30]} 13. b3 {[%emt 0:00:30]} O-O {[%emt 0:00:30]} 14. g3 {[%emt 0:00:30]} Bg5 {[%emt 0:00:30]} 15. Bg2 {[%emt 0:00:30]} Ne7 {[%emt 0:00:30]} 16. O-O {[%emt 0:00:30]} Nxd5 {[%emt 0:00:30]} 17. Qxd5 {[%emt 0:00:30]} Be6 {[%emt 0:00:30]} 18. Qd3 {[%emt 0:00:30]} Qb6 {[%emt 0:00:30]} 19. Rad1 {[%emt 0:00:30]} Rfd8 {[%emt 0:00:30]} 20. Qe2 {[%emt 0:00:30]} a4 {[%emt 0:00:30]} 21. h4 {[%emt 0:00:30]} axb3 {[%emt 0:00:30]} 22. axb3 {[%emt 0:00:30]} Bh6 {[%emt 0:00:30]} 23. Ra1 {[%emt 0:00:30]} Bd7 {[%emt 0:00:30]} 24. Rfd1 {[%emt 0:00:30]} Rxa1 {[%emt 0:00:30]} 25. Rxa1 {[%emt 0:00:30]} Bc6 {[%emt 0:00:30]} 26. Qd1 {[%emt 0:00:30]} Qb7 {[%emt 0:00:30]} 27. Qe1 {[%emt 0:00:30]} f5 {[%emt 0:00:30]} 28. Qxb4 {[%emt 0:00:30]} fxe4 {[%emt 0:00:30]} 29. Qxb7 {[%emt 0:00:30]} Bxb7 {[%emt 0:00:30]} 30. Ra7 {[%emt 0:00:30]} Rb8 {[%emt 0:00:30]} 31. Kf1 {[%emt 0:00:30]} d5 {[%emt 0:00:30]} 32. Ra5 {[%emt 0:00:30]} Ra8 {[%emt 0:00:30]} 33. Rb5 {[%emt 0:00:30]} Ra7 {[%emt 0:00:30]} 34. Nb4 {[%emt 0:00:30]} d4 {[%emt 0:00:30]} 35. Rxe5 {[%emt 0:00:30]} Ra1+ {[%emt 0:00:30]} 36. Ke2 {[%emt 0:00:30]} d3+ {[%emt 0:00:30]} 37. Nxd3 {[%emt 0:00:30]} exd3+ {[%emt 0:00:30]} 38. Kxd3 {[%emt 0:00:30]} Bxg2 {[%emt 0:00:30]} 39. c5 {[%emt 0:00:30]} g6 {[%emt 0:00:30]} 40. b4 {[%emt 0:00:30]} Rb1 {[%emt 0:00:30]} 41. Re8+ {[%emt 0:00:30]} Kf7 {[%emt 0:00:30]} 42. Rb8 {[%emt 0:00:30]} Ke6 {[%emt 0:00:30]} 43. Rb6+ {[%emt 0:00:30]} Kd7 {[%emt 0:00:30]} 44. h5 {[%emt 0:00:30]} Bc6 {[%emt 0:00:30]} 45. Kc4 {[%emt 0:00:30]} Bd2 {[%emt 0:00:30]} 46. hxg6 {[%emt 0:00:30]} hxg6 {[%emt 0:00:30]} 47. b5 {[%emt 0:00:30]} Rxb5 {[%emt 0:00:30]} 48. Rxb5 {[%emt 0:00:30]} Bxb5+ {[%emt 0:00:30]} 49. Kxb5 {[%emt 0:00:30]} Be1 {[%emt 0:00:30]} 50. c6+ {[%emt 0:00:30]} Kc7 {[%emt 0:00:30]} 51. f3 {[%emt 0:00:30]} Bxg3 {[%emt 0:00:30]} 52. Kc5 {[%emt 0:00:30]} g5 {[%emt 0:00:30]} 53. Kd5 {[%emt 0:00:30]} Bd6 {[%emt 0:00:30]} 54. Ke6 {[%emt 0:00:30]} Kxc6 {[%emt 0:00:30]} 55. Kf5 {[%emt 0:00:30]} Bf4 {[%emt 0:00:30]} 56. Ke6 {[%emt 0:00:30]} Kc5 {[%emt 0:00:30]} 57. Kf5 {[%emt 0:00:30]} Kd4 {[%emt 0:00:30]} 58. Kg4 {[%emt 0:00:30]} Ke3 {[%emt 0:00:30]} 59. Kh3 {[%emt 0:00:30]} Kf2 {[%emt 0:00:30]} 60. Kg4 {[%emt 0:00:30]} Kg2 {[%emt 0:00:30]} 0-1

[Event "North American U20 Girls 2019"]
[Site "Charlotte"]
[Date "2019.06.27"]
[Round "2.3"]
[White "Dommalapati, Aasa"]
[Black "Zeng, Sheena"]
[Result "1/2-1/2"]
[ECO "C10"]
[WhiteElo "1691"]
[BlackElo "1964"]
[Annotator "NA"]
[PlyCount "71"]
[EventDate "2019.06.27"]
[EventType "swiss"]
[EventCountry "USA"]
[SourceTitle "playchess.com"]
[Source "ChessBase"]
[SourceQuality "1"]
[TimeControl "5400+30"]

1. e4 {[%emt 1:30:30]} e6 {[%emt 1:30:30]} 2. d4 {[%emt 0:00:30]} d5 {[%emt 0:00:30]} 3. Nc3 {[%emt 0:00:30]} dxe4 {[%emt 0:00:30]} 4. Nxe4 {[%emt 0:00:30]} Nd7 {[%emt 0:00:30]} 5. Nf3 {[%emt 0:00:30]} Ngf6 {[%emt 0:00:30]} 6. Nxf6+ {[%emt 0:00:30]} Nxf6 {[%emt 0:00:30]} 7. c3 {[%emt 0:00:30]} c5 {[%emt 0:00:30]} 8. Ne5 {[%emt 0:00:30]} a6 {[%emt 0:00:30]} 9. Qa4+ {[%emt 0:00:30]} Nd7 {[%emt 0:00:30]} 10. Bb5 {[%emt 0:00:30]} cxd4 {[%emt 0:00:30]} 11. Bxd7+ {[%emt 0:00:30]} Bxd7 {[%emt 0:00:30]} 12. Qxd4 {[%emt 0:00:30]} Bb5 {[%emt 0:00:30]} 13. Qxd8+ {[%emt 0:00:30]} Rxd8 {[%emt 0:00:30]} 14. a4 {[%emt 0:00:30]} Bd7 {[%emt 0:00:30]} 15. Nxd7 {[%emt 0:00:30]} Rxd7 {[%emt 0:00:30]} 16. Be3 {[%emt 0:00:30]} Bd6 {[%emt 0:00:30]} 17. Rd1 {[%emt 0:00:30]} Ke7 {[%emt 0:00:30]} 18. Ke2 {[%emt 0:00:30]} Rhd8 {[%emt 0:00:30]} 19. Rd3 {[%emt 0:00:30]} b5 {[%emt 0:00:30]} 20. axb5 {[%emt 0:00:30]} axb5 {[%emt 0:00:30]} 21. Rhd1 {[%emt 0:00:30]} Be5 {[%emt 0:00:30]} 22. Bc5+ {[%emt 0:00:30]} Ke8 {[%emt 0:00:30]} 23. g3 {[%emt 0:00:30]} Rd5 {[%emt 0:00:30]} 24. Rxd5 {[%emt 0:00:30]} Rxd5 {[%emt 0:00:30]} 25. Rxd5 {[%emt 0:00:30]} exd5 {[%emt 0:00:30]} 26. Kd3 {[%emt 0:00:30]} Kd7 {[%emt 0:00:30]} 27. f4 {[%emt 0:00:30]} Bf6 {[%emt 0:00:30]} 28. Bd4 {[%emt 0:00:30]} Bxd4 {[%emt 0:00:30]} 29. Kxd4 {[%emt 0:00:30]} Kd6 {[%emt 0:00:30]} 30. h3 {[%emt 0:00:30]} h6 {[%emt 0:00:30]} 31. g4 {[%emt 0:00:30]} g5 {[%emt 0:00:30]} 32. f5 {[%emt 0:00:30]} f6 {[%emt 0:00:30]} 33. b3 {[%emt 0:00:30]} Kc6 {[%emt 0:00:30]} 34. Ke3 {[%emt 0:00:30]} Kc5 {[%emt 0:00:30]} 35. Kd3 {[%emt 0:00:30]} Kc6 {[%emt 0:00:30]} 36. Kd4 {[%emt 0:00:30]} 1/2-1/2

[Event "North American U20 Girls 2019"]
[Site "Charlotte"]
[Date "2019.06.27"]
[Round "2.5"]
[White "Li, Yilin"]
[Black "Wu, Abbie"]
[Result "0-1"]
[ECO "B85"]
[WhiteElo "1916"]
[BlackElo "1448"]
[Annotator "NA"]
[PlyCount "134"]
[EventDate "2019.06.27"]
[EventType "swiss"]
[EventCountry "USA"]
[SourceTitle "playchess.com"]
[Source "ChessBase"]
[SourceQuality "1"]
[TimeControl "5400+30"]

1. e4 {[%emt 1:30:30]} c5 {[%emt 1:30:30]} 2. Nf3 {[%emt 0:00:30]} d6 {[%emt 0:00:30]} 3. Nc3 {[%emt 0:00:30]} Nf6 {[%emt 0:00:30]} 4. d4 {[%emt 0:00:30]} cxd4 {[%emt 0:00:30]} 5. Nxd4 {[%emt 0:00:30]} Nc6 {[%emt 0:00:30]} 6. Be2 {[%emt 0:00:30]} e6 {[%emt 0:00:30]} 7. O-O {[%emt 0:00:30]} Be7 {[%emt 0:00:30]} 8. Be3 {[%emt 0:00:30]} O-O {[%emt 0:00:30]} 9. f4 {[%emt 0:00:30]} a6 {[%emt 0:00:30]} 10. Qe1 {[%emt 0:00:30]} Nxd4 {[%emt 0:00:30]} 11. Bxd4 {[%emt 0:00:30]} b5 {[%emt 0:00:30]} 12. Bd3 {[%emt 0:00:30]} Re8 {[%emt 0:00:30]} 13. Qg3 {[%emt 0:00:30]} Bb7 {[%emt 0:00:30]} 14. Rae1 {[%emt 0:00:30]} Rc8 {[%emt 0:00:30]} 15. Qh3 {[%emt 0:00:30]} h6 {[%emt 0:00:30]} 16. Rf3 {[%emt 0:00:30]} e5 {[%emt 0:00:30]} 17. Bf2 {[%emt 0:00:30]} Nd7 {[%emt 0:00:30]} 18. f5 {[%emt 0:00:30]} Bg5 {[%emt 0:00:30]} 19. Rf1 {[%emt 0:00:30]} Nc5 {[%emt 0:00:30]} 20. Qg4 {[%emt 0:00:30]} d5 {[%emt 0:00:30]} 21. Bxc5 {[%emt 0:00:30]} Rxc5 {[%emt 0:00:30]} 22. f6 {[%emt 0:00:30]} dxe4 {[%emt 0:00:30]} 23. Nxe4 {[%emt 0:00:30]} Qd4+ {[%emt 0:00:30]} 24. Kh1 {[%emt 0:00:30]} Bxe4 {[%emt 0:00:30]} 25. Qxe4 {[%emt 0:00:30]} Qxe4 {[%emt 0:00:30]} 26. Bxe4 {[%emt 0:00:30]} Bxf6 {[%emt 0:00:30]} 27. Ra3 {[%emt 0:00:30]} Re6 {[%emt 0:00:30]} 28. Rd1 {[%emt 0:00:30]} Be7 {[%emt 0:00:30]} 29. Rad3 {[%emt 0:00:30]} g6 {[%emt 0:00:30]} 30. Rd7 {[%emt 0:00:30]} Kf8 {[%emt 0:00:30]} 31. g4 {[%emt 0:00:30]} Rc8 {[%emt 0:00:30]} 32. c3 {[%emt 0:00:30]} Rf6 {[%emt 0:00:30]} 33. Kg2 {[%emt 0:00:30]} Rc4 {[%emt 0:00:30]} 34. Re1 {[%emt 0:00:30]} Bc5 {[%emt 0:00:30]} 35. Bf3 {[%emt 0:00:30]} e4 {[%emt 0:00:30]} 36. Be2 {[%emt 0:00:30]} Ra4 {[%emt 0:00:30]} 37. a3 {[%emt 0:00:30]} e3 {[%emt 0:00:30]} 38. Rc7 {[%emt 0:00:30]} Bd6 {[%emt 0:00:30]} 39. Rc8+ {[%emt 0:00:30]} Kg7 {[%emt 0:00:30]} 40. Bf3 {[%emt 0:00:30]} Bf4 {[%emt 0:00:30]} 41. Bd5 {[%emt 0:00:30]} Bg5 {[%emt 0:00:30]} 42. Kg3 {[%emt 0:00:30]} h5 {[%emt 0:00:30]} 43. h3 {[%emt 0:00:30]} h4+ {[%emt 0:00:30]} 44. Kg2 {[%emt 0:00:30]} Rf2+ {[%emt 0:00:30]} 45. Kg1 {[%emt 0:00:30]} Raf4 {[%emt 0:00:30]} 46. Re8 {[%emt 0:00:30]} Rf6 {[%emt 0:00:30]} 47. b4 {[%emt 0:00:30]} Rd2 {[%emt 0:00:30]} 48. Bb7 {[%emt 0:00:30]} Rff2 {[%emt 0:00:30]} 49. R8xe3 {[%emt 0:00:30]} Bxe3 {[%emt 0:00:30]} 50. Rxe3 Rf6 {[%emt 0:00:30]} 51. c4 {[%emt 0:01:00]} bxc4 {[%emt 0:00:30]} 52. a4 {[%emt 0:00:30]} Rb2 {[%emt 0:00:30]} 53. b5 {[%emt 0:00:30]} axb5 {[%emt 0:00:30]} 54. axb5 {[%emt 0:00:30]} Rxb5 {[%emt 0:00:30]} 55. Be4 {[%emt 0:00:30]} Re5 {[%emt 0:00:30]} 56. Kg2 {[%emt 0:00:30]} Rf4 {[%emt 0:00:30]} 57. g5 {[%emt 0:00:30]} Rfxe4 {[%emt 0:00:30]} 58. Rc3 {[%emt 0:00:30]} Rxg5+ {[%emt 0:00:30]} 59. Kf2 {[%emt 0:00:30]} Rf4+ {[%emt 0:00:30]} 60. Ke1 {[%emt 0:00:30]} Re5+ {[%emt 0:00:30]} 61. Kd1 {[%emt 0:00:30]} Rd4+ {[%emt 0:00:30]} 62. Kc1 {[%emt 0:00:30]} Rd3 {[%emt 0:00:30]} 63. Rxc4 {[%emt 0:00:30]} Rxh3 {[%emt 0:00:30]} 64. Rg4 {[%emt 0:00:30]} Rh1+ {[%emt 0:00:30]} 65. Kd2 {[%emt 0:00:30]} h3 {[%emt 0:00:30]} 66. Kc2 {[%emt 0:00:30]} h2 {[%emt 0:00:30]} 67. Rg2 {[%emt 0:00:30]} Ra1 {[%emt 0:00:30]} 0-1